fUSD/lending_fUSD_20251225
["ID","MTS","AMOUNT","RATE_DAILY","PERIOD"]
[399812611,1766693442438,-150.0,0.00015868,2]
[399812612,1766693442448,-150.0,0.00015872,2]
[399812613,1766693442459,-150.0,0.00015873,2]
[399812614,1766693442469,-150.0,0.00015873,2]
[399812615,1766693442478,-150.0,0.00015887,2]
[399812616,1766693442488,-150.0,0.00015887,2]
[399812617,1766693442499,-150.0,0.00015893,2]
[399812618,1766693442509,-150.0,0.00015894,2]
[399812619,1766693442518,-150.0,0.00015898,2]
[399812620,1766693442527,-150.0,0.00015899,2]
[399812621,1766693442537,-150.0,0.00015903,2]
[399812622,1766693442547,-150.0,0.00015905,2]
[399812623,1766693442557,-150.0,0.00015905,2]
[399812624,1766693442566,-150.0,0.00015909,2]
[399812625,1766693442577,-150.0,0.00015912,2]
[399812626,1766693442587,-150.0,0.00015925,2]
[399812627,1766693442597,-150.0,0.00015925,2]
[399812628,1766693442607,-150.0,0.00015932,2]
[399812629,1766693442618,-150.0,0.00015932,2]
[399812630,1766693442628,-32653.34267656,0.00015936,2]
[399812631,1766693442638,-150.0,0.00015937,2]
[399812632,1766693442648,-150.0,0.00015944,2]
[399812633,1766693442658,-150.0,0.00015951,2]
[399812634,1766693442668,-150.0,0.00015951,2]
[399812635,1766693442678,-150.0,0.00015952,2]
[399812636,1766693442691,-150.0,0.00015961,2]
[399812637,1766693442701,-150.0,0.00015967,2]
[399812638,1766693442711,-150.0,0.00015967,2]
[399812639,1766693442722,-150.0,0.00015971,2]
[399812640,1766693442731,-150.0,0.00015978,2]
[399812641,1766693442741,-150.0,0.00015983,2]
[399812642,1766693442751,-150.0,0.00015987,2]
[399812643,1766693442761,-150.0,0.00015987,2]
[399812644,1766693442771,-223.84,0.0001599,2]
[399812645,1766693442780,-150.0,0.00015991,2]
[399812646,1766693442790,-150.0,0.00015991,2]
[399812647,1766693442800,-150.0,0.00015992,2]
[399812648,1766693442810,-150.0,0.00016004,2]
[399812649,1766693442820,-150.0,0.0001601,2]
[399812650,1766693442830,-150.0,0.00016016,2]
[399812651,1766693442840,-150.0,0.0001602,2]
[399812652,1766693442850,-150.0,0.00016021,2]
[399812653,1766693442859,-223.84,0.00016029,2]
[399812654,1766693442870,-150.0,0.0001603,2]
[399812655,1766693442879,-150.0,0.00016031,2]
[399812656,1766693442889,-150.0,0.00016033,2]
[399812658,1766693442899,-150.0,0.00016035,2]
[399812659,1766693442910,-150.0,0.00016037,2]
[399812660,1766693442920,-150.0,0.00016049,2]
[399812661,1766693442930,-150.0,0.00016049,2]
[399812662,1766693442941,-150.0,0.00016057,2]
[399812663,1766693442951,-150.0,0.0001606,2]
[399812664,1766693442960,-150.0,0.0001606,2]
[399812665,1766693442970,-150.0,0.00016069,2]
[399812666,1766693442981,-150.0,0.00016075,2]
[399812667,1766693442991,-150.0,0.00016078,2]
[399812668,1766693443000,-150.0,0.00016084,2]
[399812669,1766693443011,-150.0,0.00016087,2]
[399812670,1766693443020,-150.0,0.00016087,2]
[399812671,1766693443031,-150.0,0.00016088,2]
[399812672,1766693443041,-150.0,0.00016098,2]
[399812673,1766693443050,-150.0,0.00016103,2]
[399812675,1766693443059,-150.0,0.00016103,2]
[399812677,1766693443069,-150.0,0.00016108,2]
[399812679,1766693443079,-150.0,0.00016108,2]
[399812681,1766693443089,-150.0,0.0001611,2]
[399812682,1766693443099,-150.0,0.00016116,2]
[399812683,1766693443109,-150.0,0.0001612,2]
[399812684,1766693443119,-150.0,0.00016127,2]
[399812685,1766693443129,-160.79787959,0.00016135,2]
[399812686,1766693443139,-150.0,0.00016137,2]
[399812687,1766693443149,-150.0,0.00016137,2]
[399812688,1766693443160,-150.0,0.00016137,2]
[399812689,1766693443170,-150.0,0.00016137,2]
[399812690,1766693443181,-150.0,0.00016137,2]
[399812691,1766693443191,-150.0,0.00016137,2]
[399812692,1766693443200,-150.0,0.00016137,2]
[399812693,1766693443210,-150.0,0.00016147,2]
[399812694,1766693443220,-1863.66254373,0.00016149,2]
[399812695,1766693443230,-151.0,0.00016149,2]
[399812696,1766693443240,-151.0,0.00016149,2]
[399812697,1766693443250,-250.0,0.00016149,2]
[399812698,1766693443260,-250.0,0.00016149,2]
[399812699,1766693443270,-574.12855637,0.00016149,2]
[399812700,1766693443281,-250.0,0.00016149,2]
[399812701,1766693443291,-250.0,0.00016149,2]
[399812702,1766693443300,-250.0,0.00016149,2]
[399812703,1766693443311,-250.0,0.00016149,2]
[399812704,1766693443321,-250.0,0.00016149,2]
[399812705,1766693443331,-250.0,0.00016149,2]
[399812706,1766693443341,-250.0,0.00016149,2]
[399812707,1766693443354,-250.0,0.00016149,2]
[399812708,1766693443364,-250.0,0.00016149,2]
[399812709,1766693443374,-250.0,0.00016149,2]
[399812710,1766693443384,-500.0,0.00016149,2]
[399812711,1766693443395,-250.0,0.00016149,2]
[399812712,1766693443406,-250.0,0.00016149,2]
[399812713,1766693443416,-500.0,0.00016149,2]
[399812714,1766693443427,-250.0,0.00016149,2]
[399812715,1766693443437,-250.0,0.00016149,2]
[399812716,1766693443675,-500.0,0.00016149,2]
[399812717,1766693443686,-250.0,0.00016149,2]
[399812718,1766693443696,-250.0,0.00016149,2]
[399812719,1766693443706,-500.0,0.00016149,2]
[399812720,1766693443716,-250.0,0.00016149,2]
[399812721,1766693443727,-322.6107,0.00016149,2]
[399812722,1766693443737,-500.0,0.00016149,2]
[399812723,1766693443748,-250.0,0.00016149,2]
[399812724,1766693443759,-500.0,0.00016149,2]
[399812725,1766693443768,-3610.92924073,0.00016149,2]
[399812726,1766693443779,-250.0,0.00016149,2]
[399812727,1766693443790,-250.0,0.00016149,2]
[399812728,1766693443800,-500.0,0.00016149,2]
[399812729,1766693443811,-250.0,0.00016149,2]
[399812730,1766693443826,-250.0,0.00016149,2]
[399812731,1766693443836,-500.0,0.00016149,2]
[399812732,1766693443846,-250.0,0.00016149,2]
[399812733,1766693443856,-500.0,0.00016149,2]
[399812734,1766693443866,-250.0,0.00016149,2]
[399812735,1766693443876,-500.0,0.00016149,2]
[399812736,1766693443886,-250.0,0.00016149,2]
[399812737,1766693443896,-500.0,0.00016149,2]
[399812738,1766693443906,-500.0,0.00016149,2]
[399812739,1766693443916,-250.0,0.00016149,2]
[399812740,1766693443926,-500.0,0.00016149,2]
[399812741,1766693443936,-250.0,0.00016149,2]
[399812742,1766693443947,-500.0,0.00016149,2]
[399812743,1766693443957,-250.0,0.00016149,2]
[399812744,1766693443967,-500.0,0.00016149,2]
[399812745,1766693443978,-250.0,0.00016149,2]
[399812746,1766693443988,-500.0,0.00016149,2]
[399812747,1766693444009,-250.0,0.00016149,2]
[399812748,1766693444020,-500.0,0.00016149,2]
[399812749,1766693444031,-250.0,0.00016149,2]
[399812750,1766693444041,-500.0,0.00016149,2]
[399812751,1766693444052,-500.0,0.00016149,2]
[399812752,1766693444062,-500.0,0.00016149,2]
[399812753,1766693444071,-500.0,0.00016149,2]
[399812754,1766693444082,-500.0,0.00016149,2]
[399812755,1766693444092,-283.18901002,0.00016149,2]
[399812756,1766693444103,-500.0,0.00016149,2]
[399812757,1766693444113,-500.0,0.00016149,2]
[399812758,1766693444124,-578.20924308,0.00016149,2]
[399812759,1766693444134,-1500.0,0.00016149,2]
[399812760,1766693444144,-1500.0,0.00016149,2]
[399812761,1766693444154,-1500.0,0.00016149,2]
[399812762,1766693444164,-1500.0,0.00016149,2]
[399812763,1766693444174,-1500.0,0.00016149,2]
[399812764,1766693444185,-1500.0,0.00016149,2]
[399812765,1766693444196,-1500.0,0.00016149,2]
[399812766,1766693444206,-1500.0,0.00016149,2]
[399812767,1766693444216,-620.0,0.00016149,2]
[399812768,1766693444226,-1500.0,0.00016149,2]
[399812769,1766693444236,-1500.0,0.00016149,2]
[399812770,1766693444246,-1500.0,0.00016149,2]
[399812771,1766693444257,-200.0,0.00016149,2]
[399812772,1766693444267,-207.4,0.00016149,2]
[399812773,1766693444279,-215.0738,0.00016149,2]
[399812774,1766693444290,-223.0315306,0.00016149,2]
[399812775,1766693444300,-231.28369723,0.00016149,2]
[399812776,1766693444310,-239.84119403,0.00016149,2]
[399812777,1766693444319,-248.71531821,0.00016149,2]
[399812778,1766693444329,-257.91778498,0.00016149,2]
[399812779,1766693444339,-267.46074303,0.00016149,2]
[399812780,1766693444353,-277.35679052,0.00016149,2]
[399812781,1766693444363,-150.0,0.00016158,2]
[399812782,1766693444373,-150.0,0.00016164,2]
[399812783,1766693444383,-150.0,0.00016166,2]
[399812784,1766693444395,-150.0,0.00016166,2]
[399812785,1766693444406,-150.0,0.00016171,2]
[399812786,1766693444415,-150.0,0.00016176,2]
[399812787,1766693444427,-500.0,0.00016183,2]
[399812788,1766693444438,-500.47443561,0.00016183,2]
[399812789,1766693444449,-500.0,0.00016183,2]
[399812790,1766693444459,-500.0,0.00016183,2]
[399812791,1766693444470,-206.73807968,0.00016183,2]
[399812792,1766693444479,-500.0,0.00016183,2]
[399812793,1766693444489,-500.0,0.00016183,2]
[399812794,1766693444499,-230.84233683,0.00016183,2]
[399812795,1766693444509,-500.0,0.00016183,2]
[399812796,1766693444519,-500.0,0.00016183,2]
[399812797,1766693444529,-500.0,0.00016183,2]
[399812798,1766693444539,-500.0,0.00016183,2]
[399812799,1766693444549,-500.0,0.00016183,2]
[399812800,1766693444559,-590.45626287,0.00016183,2]
[399812801,1766693444570,-160.67148555,0.00016183,2]
[399812802,1766693444579,-330.95210177,0.00016183,2]
[399812803,1766693444594,-500.0,0.00016183,2]
[399812804,1766693444605,-509.7886489,0.00016183,2]
[399812805,1766693444616,-160.28109585,0.00016183,2]
[399812806,1766693444626,-500.0,0.00016183,2]
[399812807,1766693444636,-500.0,0.00016183,2]
[399812808,1766693444646,-160.28200119,0.00016183,2]
[399812809,1766693444656,-500.0,0.00016183,2]
[399812810,1766693444667,-500.88574741,0.00016183,2]
[399812811,1766693444676,-160.27588239,0.00016183,2]
[399812812,1766693444687,-160.286897,0.00016183,2]
[399812813,1766693444696,-500.0,0.00016183,2]
[399812814,1766693444706,-160.2827953,0.00016183,2]
[399812815,1766693444716,-168.21782,0.00016183,2]
[399812816,1766693444726,-333.70058283,0.00016183,2]
[399812817,1766693444735,-500.0,0.00016183,2]
[399812818,1766693444745,-515.54072242,0.00016183,2]
[399812819,1766693444755,-500.19210667,0.00016183,2]
[399812820,1766693444764,-500.56420784,0.00016183,2]
[399812821,1766693444774,-500.27931325,0.00016183,2]
[399812822,1766693444784,-500.0,0.00016183,2]
[399812823,1766693444794,-500.0,0.00016183,2]
[399812824,1766693444804,-500.0,0.00016183,2]
[399812825,1766693444813,-500.0,0.00016183,2]
[399812826,1766693444823,-500.19412823,0.00016183,2]
[399812827,1766693444833,-160.28765505,0.00016183,2]
[399812828,1766693444843,-500.0,0.00016183,2]
[399812829,1766693444854,-160.176,0.00016183,2]
[399812830,1766693444864,-500.0,0.00016183,2]
[399812831,1766693444874,-500.0,0.00016183,2]
[399812832,1766693444883,-500.0,0.00016183,2]
[399812833,1766693444894,-160.28775802,0.00016183,2]
[399812834,1766693444904,-500.27358903,0.00016183,2]
[399812835,1766693444914,-160.2829779,0.00016183,2]
[399812836,1766693444924,-160.28551418,0.00016183,2]
[399812837,1766693444933,-500.0,0.00016183,2]
[399812838,1766693444944,-500.67181276,0.00016183,2]
[399812839,1766693444954,-160.34028042,0.00016183,2]
[399812840,1766693444965,-500.0,0.00016183,2]
[399812841,1766693444975,-500.0,0.00016183,2]
[399812842,1766693444985,-500.0,0.00016183,2]
[399812843,1766693444995,-165.66029733,0.00016183,2]
[399812844,1766693445005,-551.71631931,0.00016183,2]
[399812845,1766693445016,-163.80128697,0.00016183,2]
[399812846,1766693445026,-374.62630922,0.00016183,2]
[399812847,1766693445036,-500.0,0.00016183,2]
[399812848,1766693445046,-282.75737682,0.00016183,2]
[399812849,1766693445057,-161.71749088,0.00016183,2]
[399812850,1766693445068,-500.0,0.00016183,2]
[399812851,1766693445079,-307.46227328,0.00016183,2]
[399812852,1766693445088,-168.29544961,0.00016183,2]
[399812853,1766693445099,-500.0,0.00016183,2]
[399812854,1766693445109,-500.0,0.00016183,2]
[399812855,1766693445119,-500.0,0.00016183,2]
[399812856,1766693445129,-500.0,0.00016183,2]
[399812857,1766693445139,-168.70375844,0.00016183,2]
[399812858,1766693445149,-483.31289544,0.00016183,2]
[399812859,1766693445159,-500.0,0.00016183,2]
[399812860,1766693445169,-500.0,0.00016183,2]
[399812861,1766693445180,-500.0,0.00016183,2]
[399812862,1766693445190,-164.92711325,0.00016183,2]
[399812863,1766693445200,-500.0,0.00016183,2]
[399812864,1766693445210,-378.15038662,0.00016183,2]
[399812865,1766693445220,-500.0,0.00016183,2]
[399812866,1766693445230,-506.42109494,0.00016183,2]
[399812867,1766693445240,-500.0,0.00016183,2]
[399812868,1766693445250,-500.0,0.00016183,2]
[399812869,1766693445260,-500.18172396,0.00016183,2]
[399812870,1766693445271,-500.0,0.00016183,2]
[399812871,1766693445281,-329.37103427,0.00016183,2]
[399812872,1766693445290,-500.0,0.00016183,2]
[399812873,1766693445301,-150.0,0.00016186,2]
[399812874,1766693445311,-150.0,0.00016187,2]
[399812875,1766693445321,-150.0,0.00016187,2]
[399812876,1766693445330,-150.0,0.0001619,2]
[399812877,1766693445340,-150.0,0.00016195,2]
[399812878,1766693445355,-150.0,0.00016196,2]
[399812879,1766693445365,-150.0,0.00016199,2]
[399812880,1766693445375,-300.0,0.00016205,2]
[399812882,1766693445387,-150.0,0.00016205,2]
[399812883,1766693445397,-150.0,0.00016214,2]
[399812885,1766693445407,-150.0,0.00016214,2]
[399812887,1766693445417,-150.0,0.00016217,2]
[399812889,1766693445428,-150.0,0.00016225,2]
[399812890,1766693445438,-150.0,0.00016225,2]
[399812891,1766693445448,-150.0,0.00016237,2]
[399812892,1766693445458,-150.0,0.00016239,2]
[399812893,1766693445467,-150.0,0.00016241,2]
[399812894,1766693445477,-150.0,0.00016243,2]
[399812895,1766693445487,-150.0,0.00016244,2]
[399812896,1766693445496,-150.0,0.00016253,2]
[399812897,1766693445506,-150.0,0.00016254,2]
[399812898,1766693445516,-150.0,0.00016258,2]
[399812899,1766693445526,-150.0,0.00016264,2]
[399812900,1766693445535,-150.0,0.0001627,2]
[399812901,1766693445546,-150.0,0.00016282,2]
[399812902,1766693445556,-150.0,0.00016283,2]
[399812903,1766693445566,-150.0,0.00016283,2]
[399812904,1766693445575,-150.0,0.00016287,2]
[399812905,1766693445585,-150.0,0.00016287,2]
[399812906,1766693445595,-150.0,0.00016291,2]
[399812907,1766693445605,-150.0,0.00016296,2]
[399812908,1766693445615,-150.0,0.00016303,2]
[399812909,1766693445629,-150.0,0.00016307,2]
[399812910,1766693445639,-150.0,0.00016307,2]
[399812911,1766693445649,-150.0,0.00016313,2]
[399812912,1766693445659,-150.0,0.00016322,2]
[399812913,1766693445670,-150.0,0.00016323,2]
[399812914,1766693445682,-150.0,0.00016323,2]
[399812915,1766693445694,-150.0,0.0001633,2]
[399812916,1766693445704,-150.0,0.00016337,2]
[399812917,1766693445715,-150.0,0.00016342,2]
[399812918,1766693445725,-150.0,0.00016342,2]
[399812919,1766693445736,-150.0,0.00016349,2]
[399812920,1766693445746,-150.0,0.00016349,2]
[399812921,1766693445756,-150.0,0.0001636,2]
[399812922,1766693445766,-150.0,0.00016362,2]
[399812923,1766693445776,-150.0,0.00016364,2]
[399812924,1766693445786,-150.0,0.00016365,2]
[399812925,1766693445797,-150.0,0.00016369,2]
[399812926,1766693445807,-150.0,0.00016369,2]
[399812927,1766693445817,-150.0,0.00016371,2]
[399812928,1766693445827,-150.0,0.00016375,2]
[399812929,1766693445837,-150.0,0.00016376,2]
[399812930,1766693445846,-150.0,0.0001638,2]
[399812931,1766693445856,-150.0,0.00016381,2]
[399812932,1766693445866,-150.0,0.00016387,2]
[399812933,1766693445876,-150.0,0.00016387,2]
[399812935,1766693445886,-1000.0,0.000164,2]
[399812937,1766693445896,-150.0,0.00016401,2]
[399812939,1766693445905,-150.0,0.00016401,2]
[399812941,1766693445915,-150.0,0.00016402,2]
[399812943,1766693445925,-150.0,0.00016406,2]
[399812945,1766693445936,-150.0,0.00016407,2]
[399812947,1766693445945,-300.0,0.00016411,2]
[399812949,1766693445955,-32653.34267656,0.00016418,2]
[399812951,1766693445965,-150.0,0.0001642,2]
[399812953,1766693445974,-150.0,0.00016429,2]
[399812955,1766693445984,-150.0,0.0001643,2]
[399812957,1766693445993,-1000.0,0.00016431,2]
[399812959,1766693446003,-150.0,0.00016437,2]
[399812961,1766693446016,-500.0,0.00016437,2]
[399812963,1766693446026,-543.83,0.00016437,2]
[399812965,1766693446036,-927.42913189,0.00016438,2]
[399812967,1766693446045,-927.42913189,0.00016438,2]
[399812969,1766693446055,-927.42913189,0.00016438,2]
[399812971,1766693446065,-927.42913189,0.00016438,2]
[399812973,1766693446075,-927.42913189,0.00016438,2]
[399812975,1766693446084,-927.42913189,0.00016438,2]
[399812977,1766693446094,-927.42913189,0.00016438,2]
[399812979,1766693446104,-927.42913189,0.00016438,2]
[399812981,1766693446114,-927.42913189,0.00016438,2]
[399812983,1766693446123,-927.42913189,0.00016438,2]
[399812985,1766693446133,-927.42913189,0.00016438,2]
[399812987,1766693446143,-927.42913189,0.00016438,2]
[399812989,1766693446152,-927.42913189,0.00016438,2]
[399812999,1766693446162,-927.42913189,0.00016438,2]
[399813001,1766693446253,-927.42913189,0.00016438,2]
[399813003,1766693446262,-927.42913189,0.00016438,2]
[399813005,1766693446271,-927.42913189,0.00016438,2]
[399813007,1766693446281,-927.42913189,0.00016438,2]
[399813009,1766693446291,-927.42913189,0.00016438,2]
[399813011,1766693446300,-927.42913189,0.00016438,2]
[399813013,1766693446309,-927.42913189,0.00016438,2]
[399813015,1766693446319,-927.42913189,0.00016438,2]
[399813016,1766693446327,-927.42913189,0.00016438,2]
[399813019,1766693446337,-927.42913189,0.00016438,2]
[399813020,1766693446346,-927.42913189,0.00016438,2]
[399813022,1766693446359,-927.42913189,0.00016438,2]
[399813024,1766693446367,-927.42913189,0.00016438,2]
[399813026,1766693446377,-927.42913189,0.00016438,2]
[399813028,1766693446386,-927.42913189,0.00016438,2]
[399813030,1766693446397,-927.42913189,0.00016438,2]
[399813032,1766693446406,-927.42913189,0.00016438,2]
[399813034,1766693446415,-927.42913189,0.00016438,2]
[399813036,1766693446426,-927.42913189,0.00016438,2]
[399813038,1766693446435,-927.42913189,0.00016438,2]
[399813040,1766693446445,-927.42913189,0.00016438,2]
[399813042,1766693446455,-927.42913189,0.00016438,2]
[399813044,1766693446464,-927.42913189,0.00016438,2]
[399813046,1766693446473,-927.42913189,0.00016438,2]
[399813048,1766693446484,-927.42913189,0.00016438,2]
[399813050,1766693446494,-927.42913189,0.00016438,2]
[399813052,1766693446503,-927.42913189,0.00016438,2]
[399813054,1766693446512,-927.42913189,0.00016438,2]
[399813056,1766693446522,-927.42913189,0.00016438,2]
[399813058,1766693446532,-927.42913189,0.00016438,2]
[399813060,1766693446542,-927.42913189,0.00016438,2]
[399813062,1766693446551,-927.42913189,0.00016438,2]
[399813064,1766693446560,-927.42913189,0.00016438,2]
[399813066,1766693446569,-927.42913189,0.00016438,2]
[399813068,1766693446579,-927.42913189,0.00016438,2]
[399813070,1766693446588,-927.42913189,0.00016438,2]
[399813072,1766693446597,-927.42913189,0.00016438,2]
[399813074,1766693446607,-927.42913189,0.00016438,2]
[399813076,1766693446617,-927.42913189,0.00016438,2]
[399813078,1766693446628,-927.42913189,0.00016438,2]
[399813080,1766693446638,-927.42913189,0.00016438,2]
[399813082,1766693446647,-538.17826971,0.00016438,2]
[399813099,1766693447004,-389.25086218,0.00016438,2]
[399813100,1766693447014,-187.30653596,0.00016438,2]
[399813101,1766693447301,-151.0,0.00013259,2]
[399813102,1766693447311,-151.0,0.00013259,2]
[399813103,1766693447321,-740.12259593,0.00016438,2]
[399813104,1766693447331,-927.42913189,0.00016438,2]
[399813105,1766693447341,-927.42913189,0.00016438,2]
[399813106,1766693447354,-927.42913189,0.00016438,2]
[399813107,1766693447364,-927.42913189,0.00016438,2]
[399813108,1766693447374,-921.03306891,0.00016438,2]
[399813109,1766693447384,-921.03306891,0.00016438,2]
[399813110,1766693447395,-921.03306891,0.00016438,2]
[399813111,1766693447404,-921.03306891,0.00016438,2]
[399813112,1766693447414,-921.03306891,0.00016438,2]
[399813113,1766693447425,-921.03306891,0.00016438,2]
[399813114,1766693447435,-921.03306891,0.00016438,2]
[399813115,1766693447448,-921.03306891,0.00016438,2]
[399813116,1766693447457,-921.03306891,0.00016438,2]
[399813117,1766693447468,-921.03306891,0.00016438,2]
[399813118,1766693447478,-921.03306891,0.00016438,2]
[399813119,1766693447487,-921.03306891,0.00016438,2]
[399813120,1766693447497,-921.03306891,0.00016438,2]
[399813121,1766693447506,-921.03306891,0.00016438,2]
[399813122,1766693447515,-199.52474327,0.00016438,2]
[399813123,1766693447527,-298.51436949,0.00016438,2]
[399813124,1766693447538,-422.99395615,0.00016438,2]
[399813125,1766693447547,-921.03306891,0.00016438,2]
[399813126,1766693447557,-921.03306891,0.00016438,2]
[399813127,1766693447567,-921.03306891,0.00016438,2]
[399813128,1766693447576,-503.42683712,0.00016438,2]
[399813129,1766693447588,-417.60623179,0.00016438,2]
[399813130,1766693447597,-921.03306891,0.00016438,2]
[399813131,1766693447607,-179.48404355,0.00016438,2]
[399813132,1766693447630,-265.96,0.00016438,2]
[399813133,1766693447642,-475.58902536,0.00016438,2]
[399813134,1766693447652,-479.13381281,0.00016438,2]
[399813135,1766693447664,-441.8992561,0.00016438,2]
[399813136,1766693447673,-856.95119153,0.00016438,2]
[399813137,1766693447685,-64.08187738,0.00016438,2]
[399813138,1766693447694,-921.03306891,0.00016438,2]
[399813139,1766693447704,-921.03306891,0.00016438,2]
[399813140,1766693447714,-921.03306891,0.00016438,2]
[399813141,1766693447724,-921.03306891,0.00016438,2]
[399813142,1766693447733,-921.03306891,0.00016438,2]
[399813143,1766693447742,-921.03306891,0.00016438,2]
[399813144,1766693447752,-150.0,0.00016438,2]
[399813145,1766693447761,-295.67359888,0.00016438,2]
[399813146,1766693447777,-204.32640112,0.00016438,2]
[399813147,1766693447787,-716.0,0.00016438,2]
[399813148,1766693447796,-800.0,0.00016438,2]
[399813149,1766693447806,-150.0,0.0001644,2]
[399813150,1766693447815,-41325.20904142,0.00016441,2]
[399813151,1766693447825,-583.07830005,0.00016441,2]
[399813152,1766693447835,-150.0,0.00016443,2]
[399813153,1766693447845,-823.0,0.00016444,2]
[399813154,1766693447857,-150.0,0.00016446,2]
[399813155,1766693447867,-150.0,0.00016448,2]
[399813156,1766693447877,-150.0,0.00016454,2]
[399813157,1766693447887,-150.0,0.00016455,2]
[399813158,1766693447896,-150.0,0.00016459,2]
[399813159,1766693447906,-150.0,0.00016459,2]
[399813160,1766693447916,-1000.0,0.00016464,2]
[399813161,1766693447926,-500.0,0.00016465,2]
[399813162,1766693447936,-150.0,0.00016474,2]
[399813163,1766693447946,-1000.0,0.00016478,2]
[399813164,1766693447956,-150.0,0.00016479,2]
[399813165,1766693447966,-150.0,0.00016482,2]
[399813166,1766693447976,-1136.0,0.00016483,2]
[399813167,1766693447987,-150.0,0.00016484,2]
[399813168,1766693447997,-150.0,0.00016487,2]
[399813169,1766693448007,-150.0,0.00016487,2]
[399813170,1766693448018,-150.0,0.00016488,2]
[399813171,1766693448027,-150.0,0.00016489,2]
[399813172,1766693448037,-500.0,0.00016493,2]
[399813173,1766693448048,-1000.0,0.00016493,2]
[399813174,1766693448058,-150.0,0.00016498,2]
[399813175,1766693448068,-1000.0,0.000165,2]
[399813176,1766693448079,-150.0,0.00016501,2]
[399813177,1766693448090,-150.0,0.00016509,2]
[399813178,1766693448100,-150.0,0.00016511,2]
[399813179,1766693448110,-4807.0,0.00016515,2]
[399813180,1766693448121,-2430.0,0.00016515,2]
[399813181,1766693448131,-122.32066057,0.00016515,2]
[399813182,1766693448230,-454.64433943,0.00016515,2]
[399813183,1766693448241,-150.0,0.00016518,2]
[399813184,1766693448251,-150.0,0.00016518,2]
[399813185,1766693448261,-500.0,0.0001652,2]
[399813186,1766693448271,-150.0,0.00016523,2]
[399813187,1766693448282,-150.0,0.00016523,2]
[399813188,1766693448291,-150.0,0.00016531,2]
[399813189,1766693448301,-150.0,0.00016535,2]
[399813190,1766693448311,-150.0,0.00016537,2]
[399813191,1766693448321,-150.0,0.00016537,2]
[399813192,1766693448333,-150.0,0.00016547,2]
[399813193,1766693448343,-500.0,0.00016548,2]
[399813194,1766693448358,-150.0,0.00016557,2]
[399813195,1766693448367,-1192.0,0.00016558,2]
[399813196,1766693448378,-150.0,0.00016562,2]
[399813197,1766693448387,-150.0,0.00016562,2]
[399813198,1766693448399,-150.0,0.00016562,2]
[399813199,1766693448409,-3292.0,0.00016564,2]
[399813200,1766693448419,-150.0,0.00016572,2]
[399813201,1766693448429,-150.0,0.00016574,2]
[399813202,1766693448440,-500.0,0.00016575,2]
[399813203,1766693448451,-150.0,0.00016576,2]
[399813204,1766693448462,-150.0,0.00016576,2]
[399813205,1766693448472,-150.0,0.00016579,2]
[399813206,1766693448483,-150.0,0.00016587,2]
[399813207,1766693448493,-150.0,0.00016587,2]
[399813208,1766693448503,-150.0,0.00016588,2]
[399813209,1766693448513,-692.29661032,0.00016594,2]
[399813210,1766693448523,-1000.0,0.00016595,2]
[399813211,1766693448533,-150.0,0.00016596,2]
[399813212,1766693448542,-1000.0,0.000166,2]
[399813213,1766693448553,-150.0,0.000166,2]